bitfinex/quotes_ETHUSD_20250504
["timestamp","ask_amount","ask_price","bid_price","bid_amount"]
[1746316801503,0.6518,1836.9,1836.5,0.05444261]
[1746316801701,0.50662369,1836.8,1836.5,0.05444261]
[1746316802276,0.50662369,1836.7,1836.5,0.05444261]
[1746316802580,0.50662369,1836.6,1836.5,0.05444261]
[1746316805309,0.50662369,1836.6,1836.5,5.49958282]
[1746316806406,0.50662369,1836.6,1836.5,6.67537884]
[1746316810408,0.50662369,1836.6,1836.5,6.62093623]
[1746316810802,0.6518,1837.1,1837.0,5.44365813]
[1746316811007,5.2338,1837.1,1837.0,5.44365813]
[1746316815190,0.6518,1837.0,1836.7,5.44453705]
[1746316815522,0.6518,1836.9,1836.8,5.44423936]
[1746316815894,0.6518,1836.9,1836.7,5.44439728]
[1746316817526,5.2338,1836.8,1836.7,5.44439728]
[1746316817894,5.2338,1836.8,1836.7,5.59881786]
[1746316818095,5.2338,1836.8,1836.7,0.15442058]
[1746316818297,5.75718,1836.8,1836.7,0.15442058]
[1746316818603,5.75718,1836.8,1836.7,5.59896786]
[1746316819329,5.75718,1836.8,1836.7,0.15442058]
[1746316819522,5.10538,1836.8,1836.5,5.44501167]
[1746316819724,0.6518,1836.7,1836.6,0.15654908]
[1746316820024,1.227518,1836.7,1836.6,0.15654908]
[1746316823528,0.6518,1836.6,1836.4,5.44535381]
[1746316826230,0.6518,1836.6,1836.3,5.44555861]
[1746316826444,0.6518,1836.5,1836.2,5.44591477]
[1746316826647,4.582,1836.4,1836.2,5.44587563]
[1746316826819,5.10538,1836.4,1836.2,5.44581933]
[1746316827020,5.10538,1836.4,1836.2,10.89161381]
[1746316827216,5.10538,1836.4,1836.2,10.89162148]
[1746316827543,5.10538,1836.4,1836.3,5.44573326]
[1746316827726,5.10538,1836.4,1836.2,5.44590737]
[1746316827926,5.10538,1836.4,1836.1,5.84815673]
[1746316828127,5.10538,1836.4,1836.2,5.44580629]
[1746316829250,0.6518,1836.2,1836.1,5.44607958]
[1746316833320,0.510538,1836.3,1836.1,5.44607958]
[1746316833967,0.510538,1836.3,1836.2,5.44602984]
[1746316834558,0.510538,1836.3,1836.2,5.60631631]
[1746316836055,0.510538,1836.3,1836.2,0.16028647]
[1746316836254,0.510538,1836.3,1836.2,5.60631631]
[1746316836454,0.510538,1836.3,1836.2,5.44602984]
[1746316836621,0.510538,1836.3,1836.2,0.16028647]
[1746316837056,0.510538,1836.3,1836.1,5.44614687]
[1746316837251,0.510538,1836.3,1836.2,0.16028647]
[1746316837566,0.510538,1836.3,1836.1,5.44614687]
[1746316837567,0.510538,1836.3,1836.1,5.4461241]
[1746316837857,0.510538,1836.3,1836.2,0.16028647]
[1746316838159,0.510538,1836.3,1836.1,5.4461241]
[1746316838332,0.510538,1836.3,1836.2,0.16028647]
[1746316838538,1.162338,1836.3,1836.0,5.44645484]
[1746316838861,1.162338,1836.3,1836.1,0.16049467]
[1746316839560,6.60820569,1836.3,1836.1,0.16049467]
[1746316839727,6.75865041,1836.2,1835.8,5.44713701]
[1746316839930,1.2018,1836.0,1835.9,0.16217643]
[1746316840124,5.2308,1836.0,1835.6,0.7967]
[1746316840362,4.579,1836.0,1835.9,5.44691976]
[1746316840562,4.579,1836.0,1835.9,5.59623656]
[1746316844270,4.579,1836.0,1835.9,0.1493168]
[1746316844568,4.579,1836.0,1835.8,5.44702408]
[1746316844767,4.579,1836.0,1835.9,0.15015922]
[1746316844956,5.0369,1836.0,1835.8,5.44702408]
[1746316845136,5.0369,1836.0,1835.9,0.15015922]
[1746316845334,5.0369,1836.0,1835.7,5.84629919]
[1746316845534,4.579,1836.0,1835.8,5.59736095]
[1746316846170,4.579,1836.0,1835.9,5.44691976]
[1746316846468,4.579,1836.0,1835.9,5.59707898]
[1746316848239,4.579,1836.0,1835.9,0.15015922]
[1746316848574,4.579,1836.0,1835.8,5.44704745]
[1746316848751,4.579,1836.0,1835.9,0.15015922]
[1746316848934,4.579,1836.0,1835.8,5.44700804]
[1746316849140,4.579,1836.0,1835.9,0.15015922]
[1746316849472,4.579,1836.0,1835.9,5.44691976]
[1746316849661,4.579,1836.0,1835.9,5.59707898]
[1746316851696,4.52453229,1836.0,1835.9,5.59707898]
[1746316852707,4.51894029,1836.0,1835.9,5.59707898]
[1746316855498,4.51894029,1836.0,1835.9,0.15015922]
[1746316855665,4.97083432,1836.0,1835.9,0.15015922]
[1746316855864,5.62263432,1836.0,1835.8,5.4470586]
[1746316856066,5.62263432,1836.0,1835.9,0.15090805]
[1746316856365,5.62263432,1836.0,1835.8,5.4470586]
[1746316856572,5.62263432,1836.0,1835.9,0.15090805]
[1746316856805,5.62263432,1836.0,1835.8,5.4470586]
[1746316857001,5.62263432,1836.0,1835.9,0.15090805]
[1746316857185,5.62263432,1836.0,1835.8,5.4470586]
[1746316857500,5.17074029,1836.0,1835.9,0.15090805]
[1746316857688,11.16736338,1836.0,1835.9,0.15090805]
[1746316858003,5.72074029,1836.0,1835.6,5.44769934]
[1746316858194,5.72074029,1836.0,1835.7,0.14007079]
[1746316858794,11.16736394,1836.0,1835.7,0.14007079]
[1746316859105,1.11673639,1835.9,1835.7,0.14007079]
[1746316860005,0.50651238,1835.8,1835.6,5.44778603]
[1746316860216,0.50651238,1835.8,1835.7,0.14007079]
[1746316860507,0.50651238,1835.8,1835.7,5.587584]
[1746316861009,0.50651238,1835.8,1835.7,0.14007079]
[1746316861897,0.50651238,1835.8,1835.7,5.587584]
[1746316862097,0.50651238,1835.8,1835.7,0.14007079]
[1746316862611,0.50651238,1835.8,1835.7,5.587584]
[1746316863278,0.50651238,1835.8,1835.7,0.14007079]
[1746316864034,0.50651238,1835.8,1835.7,5.587584]
[1746316867315,0.50651238,1835.8,1835.7,10.4849089]
[1746316867515,0.50651238,1835.8,1835.7,9.6911089]
[1746316867734,0.50651238,1835.8,1835.7,8.587584]
[1746316868459,0.50651238,1835.8,1835.7,3.14007079]
[1746316868626,0.50651238,1835.8,1835.7,0.14007079]
[1746316871654,0.50651238,1835.8,1835.7,5.587584]
[1746316873061,1.15831238,1835.8,1835.7,0.14007079]
[1746316873227,2.2763501,1835.8,1835.7,0.14007079]
[1746316873566,2.2763501,1835.8,1835.7,0.14128619]
[1746316874676,1.15831238,1835.8,1835.7,0.14128619]
[1746316877565,0.50651238,1835.8,1835.7,0.14128619]
[1746316877767,0.50651238,1835.8,1835.7,5.5887994]
[1746316879970,6.60552885,1835.8,1835.7,0.14128619]
[1746316880165,6.60552885,1835.8,1835.3,5.44849724]
[1746316880371,0.6518,1835.6,1835.4,0.14191121]
[1746316880585,4.576,1835.5,1835.3,5.44849724]
[1746316880757,0.50651238,1835.4,1835.3,5.44849724]
[1746316880969,0.6518,1835.3,1835.0,5.44945394]
[1746316881260,0.50651238,1835.2,1835.0,5.44945394]
[1746316881807,0.50651238,1835.1,1835.0,5.44945394]
[1746316884167,5.08251238,1835.1,1834.9,0.7735]
[1746316884382,0.50651238,1835.0,1834.8,8.45002746]
[1746316884589,0.50651238,1835.0,1834.9,8.44988827]
[1746316885381,0.50651238,1835.0,1834.9,9.26708827]
[1746316890653,0.50651238,1835.0,1834.9,3.0]
[1746316891133,0.6518,1834.9,1834.5,0.7995]
[1746316891333,0.6518,1834.9,1834.6,5.45053319]
[1746316891519,0.50651238,1834.8,1834.7,8.45042798]
[1746316893335,0.50651238,1834.8,1834.7,3.0]
[1746316893841,0.50651238,1834.8,1834.7,8.45048236]
[1746316894660,0.50651238,1834.8,1834.7,8.600494]
[1746316894822,0.50651238,1834.8,1834.7,3.15001164]
[1746316896050,0.50651238,1834.8,1834.7,0.15001164]
[1746316896444,1.16733269,1834.8,1834.5,5.45091484]
[1746316896670,4.573,1834.7,1834.5,5.45091484]
[1746316896839,5.07951238,1834.7,1834.5,5.45085771]
[1746316897038,0.50651238,1834.6,1834.5,5.45085771]
[1746316898025,0.50651238,1834.6,1834.4,5.45126519]
[1746316898026,0.50651238,1834.6,1834.4,8.45126519]
[1746316898231,0.50651238,1834.5,1834.3,6.25550843]
[1746316898665,0.50651238,1834.5,1834.3,6.25548284]
[1746316898825,1.15975124,1834.6,1834.4,5.45137374]
[1746316899250,0.50393076,1834.5,1834.4,5.45137374]
[1746316899432,0.50393076,1834.5,1834.3,5.45148284]
[1746316899433,0.50393076,1834.5,1834.3,3.0]
[1746316899641,0.50393076,1834.4,1834.3,3.0]
[1746316899852,0.50393076,1834.4,1834.2,8.45182737]
[1746316900052,5.07693076,1834.3,1834.2,8.45182737]
[1746316901364,5.07693076,1834.3,1834.2,3.0]
[1746316901568,5.72873076,1834.3,1834.1,5.45207649]
[1746316901780,5.72873076,1834.3,1834.0,5.45236907]
[1746316901984,0.48663465,1834.2,1834.1,5.45226541]
[1746316902183,0.48663465,1834.2,1834.0,5.45250141]
[1746316902601,5.79767308,1834.3,1833.9,5.45264759]
[1746316902887,6.10480159,1833.9,1833.5,5.45398847]
[1746316903185,4.574,1833.8,1833.4,9.11908555]
[1746316903386,3.55,1833.9,1833.5,5.4538115]
[1746316903588,0.57976731,1834.2,1833.8,5.4530015]
[1746316903773,4.574,1833.9,1833.8,5.4530015]
[1746316904583,20.22587308,1834.3,1833.9,5.45262227]
[1746316904788,4.574,1834.0,1833.9,5.45262227]
[1746316905107,4.574,1834.0,1833.9,5.5880013]
[1746316905264,4.574,1834.3,1833.9,3.13537903]
[1746316905575,4.574,1834.3,1833.9,8.58803124]
[1746316906197,0.2347,1834.2,1834.0,5.45253214]
[1746316906397,0.71557,1834.2,1834.1,5.58633679]
[1746316906699,4.574,1834.3,1834.2,5.45196816]
[1746316907065,4.574,1834.3,1834.2,5.58868694]
[1746316908391,0.2347,1834.6,1834.3,5.4514465]
[1746316908593,4.575,1834.5,1834.4,5.58753013]
[1746316908796,4.575,1834.5,1834.4,0.13630153]
[1746316908999,4.575,1834.5,1834.4,5.58767527]
[1746316909164,4.575,1834.5,1834.4,5.45137374]
[1746316909493,4.575,1834.5,1834.4,5.58659797]
[1746316909887,4.575,1834.5,1834.4,6.38419797]
[1746316910072,4.575,1834.5,1834.4,7.56776716]
[1746316910474,4.575,1834.5,1834.4,10.56776716]
[1746316911504,4.575,1834.5,1834.4,10.62227666]
[1746316911734,19.653,1834.9,1834.8,5.4501853]
[1746316912014,24.227,1834.9,1834.8,6.2533853]
[1746316912315,19.653,1834.9,1834.8,6.79203594]
[1746316912466,4.574,1835.0,1834.9,5.44988827]
[1746316912661,6.6366475,1835.6,1835.2,5.44899738]
[1746316912662,4.574,1835.3,1835.2,5.44899738]
[1746316912875,4.574,1835.3,1835.2,6.25219738]
[1746316913081,3.6366475,1835.6,1835.3,5.44842226]
[1746316913298,0.36366475,1835.5,1835.3,5.44842226]
[1746316913590,0.36366475,1835.5,1835.2,5.57969507]
[1746316913794,0.36366475,1835.5,1835.3,0.13063229]
[1746316913994,0.50369632,1835.4,1835.3,0.13063229]
[1746316914196,3.0,1835.3,1834.9,5.44975726]
[1746316914374,0.50369632,1835.4,1835.3,5.44870048]
[1746316914575,3.6366475,1835.6,1835.5,5.44810678]
[1746316914883,3.6366475,1835.6,1835.5,6.3799313]
[1746316915197,4.14045912,1835.6,1835.5,6.3799313]
[1746316915570,4.14045912,1835.6,1835.5,9.78295805]
[1746316916182,0.50381162,1835.6,1835.5,11.30608543]
[1746316916569,4.574,1836.0,1835.8,5.44720793]
[1746316916794,4.574,1836.0,1835.9,0.12708956]
[1746316917195,5.07723041,1836.0,1835.8,5.44720793]
[1746316917400,5.9720882,1836.0,1835.9,0.11744964]
[1746316917911,5.9720882,1836.0,1835.9,0.11716908]
[1746316918115,5.9720882,1836.0,1835.8,5.44720793]
[1746316918279,5.9720882,1836.0,1835.9,0.11716908]
[1746316918480,5.9720882,1836.0,1835.8,5.44720793]
[1746316918789,5.9720882,1836.0,1835.9,0.11716908]
[1746316919002,5.9720882,1836.0,1835.8,5.44720793]
[1746316919311,5.9720882,1836.0,1835.9,0.11716908]
[1746316919699,5.9720882,1836.0,1835.7,8.44738689]
[1746316919873,5.9720882,1836.0,1835.9,0.11716908]
[1746316920080,5.46885779,1836.0,1835.8,0.11737735]
[1746316920317,0.54688578,1835.9,1835.7,3.0]
[1746316920483,5.99404314,1835.9,1835.3,5.44855659]
[1746316920690,0.2347,1835.8,1835.4,5.44838837]
[1746316921004,0.85757431,1835.8,1835.4,5.44838837]
[1746316921179,0.5024011,1835.7,1835.4,5.44838837]
[1746316921374,4.572,1835.6,1835.4,5.44838837]
[1746316921714,5.0744011,1835.6,1835.4,5.44838837]
[1746316922093,0.5024011,1835.5,1835.4,5.44838837]
[1746316922815,0.5024011,1835.5,1835.3,3.0]
[1746316923120,0.5024011,1835.4,1835.3,3.0]
[1746316923479,0.5024011,1835.4,1835.2,5.44884404]
[1746316923892,0.5024011,1835.3,1835.2,8.44884404]
[1746316924615,0.5024011,1835.3,1835.2,8.56840675]
[1746316925716,0.50744011,1835.5,1835.2,8.56840675]
[1746316926080,0.50193118,1835.4,1835.2,8.56840675]
[1746316926714,0.50193118,1835.3,1835.2,8.56840675]
[1746316926913,0.50193118,1835.3,1835.2,0.11956271]
[1746316927114,0.50193118,1835.3,1835.2,5.44899738]
[1746316927418,0.50744011,1835.5,1835.2,5.56856009]
[1746316927919,0.50185652,1835.4,1835.3,5.44860898]
[1746316928125,0.50185652,1835.4,1835.3,6.6696802]
[1746316928300,0.50185652,1835.4,1835.3,10.4231802]
[1746316928621,4.572,1835.6,1835.5,5.44810678]
[1746316928980,5.07387673,1835.6,1835.5,8.56886825]
[1746316929613,4.572,1835.6,1835.5,8.56886825]
[1746316930320,0.2347,1836.0,1835.7,5.44725499]
[1746316930321,4.582,1835.9,1835.7,5.44725499]
[1746316930503,0.50183972,1835.8,1835.7,3.0]
[1746316930925,4.582,1835.9,1835.7,8.44740463]
[1746316931223,4.582,1835.9,1835.7,8.44727819]
[1746316931528,4.582,1835.9,1835.8,5.44721647]
[1746316931711,4.582,1835.9,1835.7,8.4473554]
[1746316932531,4.582,1835.9,1835.8,5.44721647]
[1746316932913,0.2347,1836.2,1835.8,6.91941797]
[1746316933104,4.582,1836.0,1835.8,5.44699078]
[1746316933498,4.582,1836.0,1835.9,5.44691976]
[1746316933699,4.582,1836.0,1835.7,3.8297]
[1746316934004,4.582,1836.0,1835.7,14.72442023]
[1746316934529,0.50266628,1835.9,1835.7,14.72432626]
[1746316934821,0.50266628,1835.9,1835.7,10.74944]
[1746316934992,0.50266628,1835.8,1835.7,10.74944]
[1746316935188,0.50266628,1835.9,1835.7,10.74944]
[1746316935387,0.50266628,1835.9,1835.8,5.44721647]
[1746316935587,0.50266628,1835.9,1835.7,10.74947623]
[1746316936397,0.50266628,1835.8,1835.7,10.74947623]
[1746316936924,0.50266628,1835.9,1835.8,5.44721647]
[1746316937093,0.50266628,1835.9,1835.8,7.07233278]
[1746316939422,0.50266628,1835.9,1835.8,7.19022463]
[1746316945421,0.50266628,1835.9,1835.8,10.19022463]
[1746316945731,0.50266628,1835.9,1835.8,11.04789152]
[1746316945937,0.50266628,1835.9,1835.8,10.99342463]
[1746316952386,0.50515352,1835.9,1835.8,10.99342463]
[1746316959491,0.50515352,1835.9,1835.8,10.98783262]
[1746316972997,4.581,1836.3,1836.2,5.44602984]
[1746316973334,8.381,1836.3,1836.2,5.55715211]
[1746316975337,8.381,1836.3,1836.2,5.96043597]
[1746316982578,8.381,1836.3,1836.2,10.10110092]
[1746316983267,8.381,1836.3,1836.2,8.96043597]
[1746316983729,4.581,1836.3,1836.2,8.96043597]
[1746316985046,5.08774536,1836.3,1836.2,8.96043597]
[1746316990673,0.50674536,1836.3,1836.2,8.96043597]
[1746316992391,0.50674536,1836.3,1836.2,9.01489114]
[1746316992559,0.50674536,1836.3,1836.2,10.46100161]
[1746316993785,0.50674536,1836.3,1836.2,11.26290161]
[1746316993967,0.50674536,1836.3,1836.2,11.20844644]
[1746316994756,0.50674536,1836.3,1836.2,10.40654644]
[1746316995995,0.50674536,1836.3,1836.2,11.2628974]
[1746316996182,0.50674536,1836.3,1836.2,11.20844644]
[1746317001701,8.2036475,1836.8,1836.7,5.44454728]
[1746317001903,12.0036475,1836.8,1836.7,5.44454728]
[1746317002121,8.367,1836.8,1836.7,5.55341405]
[1746317002930,4.567,1836.8,1836.7,8.55341405]
[1746317005900,8.367,1836.8,1836.7,8.55341405]
[1746317010335,4.567,1836.8,1836.7,8.55341405]
[1746317011634,4.567,1836.8,1836.7,8.96117611]
[1746317013837,5.07318438,1836.8,1836.7,8.96117611]
[1746317015737,5.07318438,1836.8,1836.7,9.00854494]
[1746317018263,0.50618438,1836.8,1836.7,10.50831558]
[1746317019353,0.50618438,1836.8,1836.7,11.33491558]
[1746317019648,0.50618438,1836.8,1836.7,11.28047268]
[1746317020353,4.566,1837.1,1837.0,5.44365813]
[1746317020547,8.366,1837.1,1837.0,5.59622617]
[1746317020954,8.87231071,1837.1,1837.0,5.59622617]
[1746317023438,5.07231071,1837.1,1837.0,6.70023303]
[1746317025971,5.07231071,1837.1,1837.0,9.70023303]
[1746317027247,0.50631071,1837.1,1837.0,9.70023303]
[1746317027544,0.50631071,1837.1,1837.0,9.60209607]
[1746317029276,1e-08,1837.1,1837.0,16.53879068]
[1746317029454,1e-08,1837.1,1837.0,16.48436499]
[1746317030676,8.1996475,1837.5,1837.4,5.44247305]
[1746317030882,8.1996475,1837.5,1837.4,8.44247305]
[1746317031050,4.563,1837.5,1837.4,8.44247305]
[1746317032352,4.563,1837.5,1837.4,9.88939094]
[1746317033482,4.563,1837.5,1837.4,10.30265991]
[1746317033681,4.563,1837.5,1837.4,10.35707855]
[1746317033987,3.6366475,1837.7,1837.6,5.44188071]
[1746317034485,7.4366475,1837.7,1837.6,5.44188071]
[1746317035365,3.6366475,1837.7,1837.6,5.44188071]
[1746317035559,4.563,1837.8,1837.7,5.44158458]
[1746317035765,8.363,1837.8,1837.6,6.53008174]
[1746317040916,8.363,1837.8,1837.6,6.53007296]
[1746317041077,8.363,1837.8,1837.7,5.44158458]
[1746317041977,8.363,1837.8,1837.6,5.44169162]
[1746317042977,0.50531182,1837.7,1837.6,5.44169162]
[1746317047985,0.50531182,1837.7,1837.6,8.44169162]
[1746317048186,0.50531182,1837.7,1837.6,9.27409162]
[1746317048388,0.50531182,1837.7,1837.6,10.80011501]
[1746317050188,0.50531182,1837.7,1837.6,9.96771501]
[1746317050395,0.50531182,1837.7,1837.6,3.0]
[1746317050619,0.50531182,1837.7,1837.5,3.0]
[1746317050892,0.50531182,1837.7,1837.5,8.44212769]
[1746317051092,4.563,1837.8,1837.7,5.44158458]
[1746317051494,4.563,1837.8,1837.7,8.44158458]
[1746317051722,5.0689957,1837.8,1837.7,8.44158458]
[1746317054041,5.0689957,1837.8,1837.7,9.82993111]
[1746317054628,5.06930924,1837.8,1837.7,9.82993111]
[1746317056032,0.50630924,1837.8,1837.7,9.82993111]
[1746317057067,0.50630924,1837.8,1837.7,9.88434065]
[1746317058340,0.50630924,1837.8,1837.7,9.82993111]
[1746317064274,0.50630924,1837.8,1837.7,9.88434066]
[1746317069271,0.50630924,1837.8,1837.7,9.82993111]
[1746317071560,0.50630924,1837.8,1837.7,9.88434074]
[1746317072200,0.2347,1838.0,1837.8,5.44107174]
[1746317072605,0.50674578,1837.9,1837.8,5.44107174]
[1746317086546,0.2347,1838.0,1837.8,5.44107174]
[1746317086829,0.50749349,1837.9,1837.8,8.44107174]
[1746317087031,0.50749349,1837.9,1837.8,10.60633737]
[1746317089129,0.50749349,1837.9,1837.8,10.66074071]
[1746317089331,3.6366475,1838.2,1838.1,5.44040041]
[1746317089547,7.4366475,1838.2,1838.1,8.44040041]
[1746317089918,3.6366475,1838.2,1838.1,8.44040041]
[1746317090118,3.6366475,1838.2,1838.1,8.85597038]
[1746317091960,4.553,1838.3,1838.1,8.85597038]
[1746317091961,8.1896475,1838.3,1838.2,5.44010445]
[1746317093223,8.1896475,1838.3,1838.1,8.85597038]
[1746317093557,8.4243475,1838.3,1838.1,8.85586863]
[1746317095737,8.4243475,1838.3,1838.1,8.85578921]
[1746317095955,8.4243475,1838.3,1838.1,14.29598746]
[1746317096158,4.7877,1838.3,1838.1,8.85576822]
[1746317096356,4.7877,1838.3,1838.2,5.44010445]
[1746317096558,8.5877,1838.3,1838.1,8.85578192]
[1746317097164,8.5877,1838.3,1838.1,14.29596451]
[1746317097532,8.5877,1838.3,1838.1,14.29593628]
[1746317097930,8.5877,1838.3,1838.2,5.44010445]
[1746317100280,8.5877,1838.3,1838.1,8.44021718]
[1746317100581,8.5877,1838.3,1838.1,8.44016528]
[1746317101175,8.5877,1838.3,1838.2,5.44010445]
[1746317101732,9.09406524,1838.3,1838.2,5.44010445]
[1746317102952,5.29406524,1838.3,1838.2,5.44010445]
[1746317103485,5.05936524,1838.3,1838.2,5.44010445]
[1746317106436,5.05936524,1838.3,1838.2,6.82815305]
[1746317108345,0.50636524,1838.3,1838.2,6.82815305]
[1746317110161,0.50636524,1838.3,1838.2,5.44010445]
[1746317116700,0.50636524,1838.3,1838.1,8.44038161]
[1746317116701,0.50636524,1838.3,1838.1,8.44029295]
[1746317117197,0.50636524,1838.2,1838.1,8.44029295]
[1746317122198,0.74106524,1838.2,1838.0,0.40034597]
[1746317122407,0.50636524,1838.1,1838.0,8.44046861]
[1746317123070,0.50636524,1838.1,1838.0,9.8285959]
[1746317125105,0.50636524,1838.1,1838.0,10.23371969]
[1746317128921,0.50636524,1838.1,1838.0,11.06682166]
[1746317129211,0.50636524,1838.1,1838.0,11.01241969]
[1746317131517,0.50636524,1838.1,1838.0,11.31739319]
[1746317153090,0.50636524,1838.1,1838.0,9.1505659]
[1746317159441,0.50636524,1838.1,1838.0,9.9600659]
[1746317160264,0.50636524,1838.1,1838.0,10.014464]
[1746317163476,0.50636524,1838.1,1838.0,9.9600659]
[1746317166593,0.50636524,1838.1,1838.0,10.01446364]
[1746317166771,0.50636524,1838.1,1838.0,11.55999043]
[1746317166972,0.50636524,1838.1,1838.0,11.50559269]
[1746317179346,4.549,1838.3,1838.2,8.44010445]
[1746317179507,4.549,1838.3,1838.2,8.73927489]
[1746317180725,4.54,1838.5,1838.4,5.439327]
[1746317180938,8.34,1838.5,1838.4,5.73759278]
[1746317181126,4.54,1838.5,1838.4,5.73759278]
[1746317182972,8.34,1838.5,1838.4,5.73759278]
[1746317186567,8.34,1838.5,1838.4,6.37691407]
[1746317187585,4.54,1838.5,1838.4,6.37691407]
[1746317190254,4.54,1838.5,1838.4,5.73759278]
[1746317209450,0.2347,1838.6,1838.4,5.73759278]
[1746317209665,4.7697,1838.6,1838.4,5.73759278]
[1746317212155,4.7697,1838.6,1838.5,5.43921675]
[1746317212351,8.5697,1838.6,1838.5,5.73448391]
[1746317213970,8.335,1838.6,1838.5,5.73448391]
[1746317215459,4.535,1838.6,1838.5,5.73448391]
[1746317216966,8.335,1838.6,1838.5,5.73448391]
[1746317225391,4.535,1838.6,1838.5,5.73448391]
[1746317225607,4.535,1838.6,1838.5,0.29526716]
[1746317225750,5.35216475,1838.6,1838.4,5.43950851]
[1746317226082,4.535,1838.6,1838.5,0.29249356]
[1746317226378,4.535,1838.6,1838.5,5.73171031]
[1746317226599,4.535,1838.6,1838.5,0.29249356]
[1746317226888,4.535,1838.6,1838.5,5.73171031]
[1746317232503,4.535,1838.6,1838.5,7.61341848]
[1746317232855,4.535,1838.6,1838.5,10.61341848]
[1746317233790,4.535,1838.6,1838.5,11.02627862]
[1746317236248,4.535,1838.6,1838.5,10.26167862]
[1746317238317,8.1666475,1838.8,1838.6,5.43886197]
[1746317238762,8.1666475,1838.8,1838.7,0.28958763]
[1746317238969,11.9666475,1838.8,1838.6,5.43886197]
[1746317239183,11.9666475,1838.8,1838.7,0.28958763]
[1746317239500,11.9666475,1838.8,1838.6,5.43886197]
[1746317239802,11.9666475,1838.8,1838.7,0.28958763]
[1746317240001,11.9666475,1838.8,1838.6,5.43891761]
[1746317240225,11.9666475,1838.8,1838.7,0.28958763]
[1746317240423,11.9666475,1838.8,1838.6,5.43891761]
[1746317240625,11.9666475,1838.8,1838.7,0.2889543]
[1746317240786,11.9666475,1838.8,1838.6,5.43891761]
[1746317240986,11.9666475,1838.8,1838.7,0.28896008]
[1746317241210,11.9666475,1838.8,1838.6,5.43891761]
[1746317241527,11.9666475,1838.8,1838.7,0.28896008]
[1746317241819,11.9666475,1838.8,1838.6,5.43891761]
[1746317242002,11.9666475,1838.8,1838.7,6.27147695]
[1746317242199,8.33,1838.8,1838.7,6.27147695]
[1746317242819,4.53,1838.8,1838.7,6.27147695]
[1746317243024,4.53,1838.8,1838.7,5.72758519]
[1746317243724,4.53,1838.8,1838.7,0.28896008]
[1746317244023,4.53,1838.8,1838.7,5.43862511]
[1746317244222,4.53,1838.8,1838.7,5.72767833]
[1746317253876,3.6366475,1839.1,1838.8,0.7556]
[1746317254024,8.1656475,1839.1,1839.0,5.4377379]
[1746317254347,8.1656475,1839.1,1839.0,5.72492297]
[1746317254549,8.1656475,1839.1,1839.0,0.28718507]
[1746317255361,8.98221225,1839.1,1839.0,0.28718507]
[1746317256461,8.1656475,1839.1,1839.0,0.28718507]
[1746317260033,8.1656475,1839.1,1839.0,5.72492297]
[1746317261568,4.529,1839.1,1839.0,5.72492297]
[1746317263469,4.529,1839.1,1839.0,6.137589]
[1746317264152,4.529,1839.1,1839.0,9.907789]
[1746317264336,4.529,1839.1,1839.0,11.44234905]
[1746317267369,4.529,1839.1,1839.0,9.137589]
[1746317267741,19.61,1839.3,1839.1,5.43733256]
[1746317267742,4.524,1839.2,1839.1,5.43733256]
[1746317267941,24.134,1839.3,1839.2,9.20734658]
[1746317268470,24.134,1839.3,1839.2,9.49120713]
[1746317272771,4.524,1839.3,1839.2,9.49120713]
[1746317272972,4.524,1839.3,1839.2,10.9840611]
[1746317277372,4.524,1839.3,1839.2,5.54691452]
[1746317277561,4.524,1839.3,1839.2,4.05406055]
[1746317278071,4.524,1839.3,1839.2,9.49120713]
[1746317278977,5.47628489,1839.7,1839.3,5.43676176]
[1746317279183,4.524,1839.6,1839.3,5.43676176]
[1746317279340,4.524,1839.6,1839.4,0.28193337]
[1746317279541,9.95996916,1839.6,1839.4,0.28193337]
[1746317279744,9.95996916,1839.6,1839.2,6.2071395]
[1746317280076,9.95996916,1839.6,1839.2,7.67158507]
[1746317280274,9.95996916,1839.6,1839.3,0.28215237]
[1746317280478,9.90996916,1839.6,1839.3,0.28215237]
[1746317281389,4.474,1839.6,1839.3,0.28215237]
[1746317281548,0.2347,1839.5,1839.3,0.28215237]
[1746317282064,1.24918096,1839.5,1839.4,0.28193337]
[1746317282269,0.2347,1839.5,1839.2,5.43712608]
[1746317282483,0.2347,1839.5,1839.3,0.28215237]
[1746317283664,5.67099316,1839.5,1839.3,0.28215237]
[1746317283873,5.43655539,1839.4,1839.0,5.85038951]
[1746317284076,5.43655539,1839.4,1839.1,0.28259043]
[1746317284258,5.67099488,1839.5,1839.1,5.71995899]
[1746317284454,7.22910618,1839.5,1839.1,5.71995899]
[1746317286987,7.22910618,1839.5,1839.1,5.72001939]
[1746317290695,1.7928113,1839.5,1839.2,5.43710914]
[1746317290898,1.7928113,1839.5,1839.3,0.28285028]
[1746317291086,3.8,1839.4,1839.3,0.28285028]
[1746317292461,3.8,1839.4,1839.1,11.69257048]
[1746317292663,4.474,1839.6,1839.3,5.43683778]
[1746317292966,4.474,1839.6,1839.4,0.28263129]
[1746317293174,3.8,1839.5,1839.4,0.28263129]
[1746317293678,3.8,1839.5,1839.2,5.43695405]
[1746317293877,3.8,1839.5,1839.3,0.28285028]
[1746317297815,4.524,1839.4,1839.3,0.28285028]
[1746317298914,4.524,1839.4,1839.3,5.71970125]
[1746317299405,4.524,1839.4,1839.3,0.28285028]
[1746317301077,4.524,1839.4,1839.3,5.71970125]
[1746317301514,4.524,1839.4,1839.3,0.28285028]
[1746317305817,9.07263113,1839.6,1839.3,0.28285028]
[1746317305818,3.6366475,1839.6,1839.3,0.85482692]
[1746317305996,4.52,1839.4,1839.3,6.54100192]
[1746317306516,4.52,1839.4,1839.3,5.71970125]
[1746317306725,10.50655539,1839.4,1839.3,0.28285028]
[1746317307021,8.87,1839.4,1839.3,0.28285028]
[1746317307220,8.32,1839.4,1839.0,8.43749672]
[1746317307405,8.32,1839.4,1839.3,0.28261762]
[1746317307612,8.32,1839.4,1839.1,0.8196]
[1746317307809,8.32,1839.4,1839.3,0.28261762]
[1746317308015,8.32,1839.4,1839.2,5.71995752]
[1746317308311,8.32,1839.4,1839.3,0.28261762]
[1746317309423,9.71911351,1839.4,1839.1,5.4374244]
[1746317309622,8.32,1839.4,1839.3,0.28261762]
[1746317309830,8.32,1839.4,1839.2,0.28320897]
[1746317310127,10.50655539,1839.4,1839.0,6.25716386]
[1746317310289,10.50655539,1839.4,1839.0,11.6946758]
[1746317310630,10.50655539,1839.4,1839.1,0.28342801]
[1746317310798,12.78797623,1839.4,1839.1,0.28342801]